Cogmind - Beta 13 @@@ ROGUE MODE // 2024.03.06 @ 22:57:41 Player: rCartos Result: Destroyed by B-36 Bruiser with Hammer Performance ------------- Evolutions (2) 1000 Regions Visited (5) 1000 Robots Destroyed (17) 85 Value Destroyed (374) 374 Prototype IDs (3) 60 Alien Tech Used (0) 0 Bonus (285) 285 TOTAL SCORE: 2804 Bonus ------- Pacifist 200 Follower Combat Kills 85 Cogmind --------- Core Integrity 0/550 Matter 139/300 Energy 100/100 System Corruption 38% Temperature Cool (0) Movement Core (50) Location -8/Materials Parts ------- > --- POWER (1) -------- (None) > --- PROPULSION (4) --- (None) > --- UTILITY (2) ------ (None) > --- WEAPON (4) ------- (None) > --- INVENTORY (5) ---- (None) Peak State ------------ > --- POWER ------------ Ion Engine > --- PROPULSION ------- Aluminum Leg Aluminum Leg Aluminum Leg Aluminum Leg > --- UTILITY ---------- Utility Shielding Hardened Medium Armor Plating > --- WEAPON ----------- Beam Cannon Improved Assault Rifle Improved Assault Rifle Mining Laser > --- INVENTORY -------- Light Ion Engine Small Storage Unit Light Assault Rifle [Rating: 17] Favorites ----------- Power Light Ion Engine Engine Light Ion Engine Propulsion Aluminum Leg Leg Aluminum Leg Utility Small Storage Unit Storage Small Storage Unit Protection Utility Shielding Weapon Beam Cannon Energy Gun Small Laser Energy Cannon Beam Cannon Ballistic Gun Improved Assault Rifle Special Weapon Mining Laser Build | -11 -10 -10 -9 -9 -8 ------- Run | Yrd Mat Min Mat Sto Mat Slots Evolved 4 | . . . 2 . 2 Power . | . . . . . . Propulsion 2 | . . . . . 2 Utility . | . . . . . . Weapon 2 | . . . 2 . . Parts Attached 24 | 8 1 1 2 5 7 Power 5 | 1 . . . 2 2 Engine 5 | 1 . . . 2 2 Core . | . . . . . . Reactor . | . . . . . . Propulsion 6 | 4 . . . . 2 Treads . | . . . . . . Leg 6 | 4 . . . . 2 Wheel . | . . . . . . Hover . | . . . . . . Flight . | . . . . . . Utility 4 | 1 . . . 1 2 Device . | . . . . . . Storage 2 | 1 . . . . 1 Processor . | . . . . . . Hackware . | . . . . . . Protection 2 | . . . . 1 1 Artifact . | . . . . . . Weapon 9 | 2 1 1 2 2 1 Energy Gun 2 | 1 . . 1 . . Energy Cannon 1 | . 1 . . . . Ballistic Gun 5 | 1 . . 1 2 1 Ballistic Cannon . | . . . . . . Launcher . | . . . . . . Special Weapon 1 | . . 1 . . . Impact Weapon . | . . . . . . Slashing Weapon . | . . . . . . Piercing Weapon . | . . . . . . Special Melee Weapon . | . . . . . . Unidentified Prototypes 1 | . . . . 1 . Parts Lost 15 | . . . . . 15 Power 3 | . . . . . 3 Propulsion 4 | . . . . . 4 Utility 3 | . . . . . 3 Weapon 5 | . . . . . 5 Highest Loss Streak 13 | . . . . . 13 To Critical Strikes 2 | . . . . . 2 Average Slot Usage (%) 83 | . 85 85 88 98 62 Engine 10 | . 14 14 11 11 5 Leg 23 | . 28 28 22 22 19 Storage 9 | . 14 14 11 11 3 Protection 4 | . . . . 9 8 Energy Gun 4 | . 14 1 11 6 . Energy Cannon 10 | . 9 14 11 11 6 Ballistic Gun 10 | . 4 . 11 15 15 Special Weapon 8 | . . 12 11 11 3 Naked Turns 53 | . . . . . 53 Heaviest Build 24 | 10 12 12 14 21 24 Greatest Support 40 | 20 20 20 20 20 40 Greatest Overweight (x) 1 | . . . . 1 1 Average Overweight (x) . | . . . . . . Largest Inventory Capacity 8 | 8 8 8 8 8 8 Average Capacity 7 | 6 8 8 8 8 6 Most Carried 5 | 5 2 3 2 5 3 Average Carried 2 | 1 1 2 1 3 1 Final Capacity 8 | 8 8 8 8 8 5 Final Carried 4 | 1 2 3 1 4 . Class Distribution -------------------- 41% | Mutant 39% | Tank 18% | Gunner Dominant Class ---------------- Mutant | -10/Materials Mutant | -10/Mines Gunner | -9/Materials Tank | -9/Storage Tank | -8/Materials Resources | -11 -10 -10 -9 -9 -8 ----------- Run | Yrd Mat Min Mat Sto Mat Matter Collected 402 | 220 . 44 41 58 39 Remotely . | . . . . . . Salvage Created 410 | . . . 43 127 240 Parts 29 | . . . . 9 20 Haulers Intercepted . | . . . . . . Recyclers Shooed . | . . . . . . Parts Field Recycled . | . . . . . . Retrieved Matter . | . . . . . . Parts Self-Destructed . | . . . . . . Prevented . | . . . . . . Kills | -11 -10 -10 -9 -9 -8 ------- Run | Yrd Mat Min Mat Sto Mat Combat Hostiles Destroyed 17 | . . . 1 4 12 Guns 10 | . . . . 3 7 Cannons 7 | . . . 1 1 5 Classes Destroyed 2 | . . . 1 . 1 Swarmer 10 | . . . . . 10 Grunt 7 | . . . 1 4 2 Best Kill Streak 9 | . . . 1 3 9 Combat Bots Only 9 | . . . 1 3 9 Max Kills in Single Turn 2 | . . . 1 2 2 Gunslinging . | . . . . . . Exploded . | . . . . . . Melee . | . . . . . . Uniques/NPCs Destroyed . | . . . . . . Combat | -11 -10 -10 -9 -9 -8 -------- Run | Yrd Mat Min Mat Sto Mat Hostile Shots Fired 158 | . . 2 4 22 130 Missed 42 | . . . 2 10 30 Damage Taken 1669 | . . 16 28 118 1507 Core 614 | . . . 28 24 562 Absorbed by Shields . | . . . . . . Core Remaining (%) 95 | 100 . 100 . 87 . Volleys Fired 34 | . . 3 2 4 25 Largest 4 | . . 1 3 4 4 Hottest 223 | . . 60 120 223 126 Shots Fired 101 | . . 3 6 14 78 Gun 65 | . . . 4 8 53 Cannon 34 | . . 3 2 4 25 Launcher . | . . . . . . Special 2 | . . . . 2 . Kinetic 61 | . . . 2 6 53 Thermal 40 | . . 3 4 8 25 Explosive . | . . . . . . Electromagnetic . | . . . . . . Robot Hit Streak 8 | . . 1 1 5 8 Robot Miss Streak 8 | . . 1 4 2 8 Penetration Max . | . . . . . . Secondary Targets . | . . . . . . Shots Hit Robots 42 | . . 2 1 7 32 Core Hits 20 | . . . 1 5 14 Critical Kills 1 | . . . . . 1 Critical Parts Destroyed . | . . . . . . Critical Strikes 1 | . . . . . 1 Destroy 1 | . . . . . 1 Melee Attacks . | . . . . . . Impact . | . . . . . . Slashing . | . . . . . . Piercing . | . . . . . . Sneak Attacks . | . . . . . . Combat Hostiles . | . . . . . . Follow-up Attacks . | . . . . . . Damage Inflicted 829 | 20 . 12 39 171 587 Guns 436 | . . . 21 95 320 Cannons 335 | . . . 18 52 265 Explosions . | . . . . . . Melee . | . . . . . . Ramming 34 | 20 . 12 . . 2 Kinetic 414 | . . . 9 85 320 Thermal 381 | . . . 30 86 265 Explosive . | . . . . . . Electromagnetic . | . . . . . . Impact . | . . . . . . Slashing . | . . . . . . Piercing . | . . . . . . Highest Corruption 38 | . . . . . 38 Average Corruption 29 | . . . . . 29 Corruption Purged . | . . . . . . Corruption Blocked . | . . . . . . Effects 7 | . . . . . 7 Message Errors 1 | . . . . . 1 Matter Fused 3 | . . . . . 3 Heat Flow Errors 1 | . . . . . 1 Data Loss (minor) 2 | . . . . . 2 Overload Shots . | . . . . . . Overflow Damage . | . . . . . . Projectiles . | . . . . . . Explosions . | . . . . . . Melee . | . . . . . . Knockbacks . | . . . . . . Impact . | . . . . . . Kinetic . | . . . . . . Secondary . | . . . . . . Self-Inflicted Damage . | . . . . . . Shots . | . . . . . . Rammed . | . . . . . . Targets Rammed 6 | 4 . 1 . . 1 Kicked 6 | 4 . 1 . . 1 Crushed . | . . . . . . Highest Temperature 548 | . . 60 102 222 548 Average Temperature 201 | . . 31 55 92 253 Received Heat Transfer 147 | . . . 9 30 108 Effects 24 | . . . . . 24 Shutdowns 2 | . . . . . 2 Energy Bleed 1 | . . . . . 1 Interference 5 | . . . . . 5 Matter Decay 2 | . . . . . 2 Damage (minor) 1 | . . . . . 1 Damage (major) 13 | . . . . . 13 Siege Activations . | . . . . . . Robots Corrupted . | . . . . . . Combat Hostiles . | . . . . . . Parts Fried . | . . . . . . Impact Corruptions . | . . . . . . Robots Melted . | . . . . . . Combat Hostiles . | . . . . . . Parts Melted 2 | . . . . . 2 Heat Transferred 803 | . . . 62 186 555 Parts Sabotaged . | . . . . . . Parts Stolen . | . . . . . . Parts Stripped . | . . . . . . Power Chain Reactions . | . . . . . . Alert | -11 -10 -10 -9 -9 -8 ------- Run | Yrd Mat Min Mat Sto Mat Peak Influence 362 | . 15 79 135 279 362 Initial 117 | . . 5 30 56 117 Average 114 | . 13 61 59 125 227 Maximum Alert Level 1 | . . . . 1 1 Low Security (%) 78 | 100 100 100 100 76 38 Level 1 21 | . . . . 23 61 Level 2 . | . . . . . . Level 3 . | . . . . . . Level 4 . | . . . . . . Level 5 . | . . . . . . High Security . | . . . . . . Max Security . | . . . . . . Squads Dispatched 4 | . . . 2 2 . Investigation 2 | . . . . 2 . Extermination . | . . . . . . Reinforcement 2 | . . . 2 . . Assault . | . . . . . . Garrison . | . . . . . . Intercept . | . . . . . . Searches Triggered . | . . . . . . Construction Impeded . | . . . . . . Haulers Reinforced . | . . . . . . Active Scanning Responses . | . . . . . . Cargo Convoy Interrupts . | . . . . . . Stealth | -11 -10 -10 -9 -9 -8 --------- Run | Yrd Mat Min Mat Sto Mat Distress Signals 1 | . . . 1 . . Communications Jammed . | . . . . . . Distress Signals . | . . . . . . Times Spotted 34 | . 3 3 5 10 13 Peak Tracking Total 10 | . 3 3 4 3 10 Tactical Retreats 2 | . . . 1 1 . Traps | -11 -10 -10 -9 -9 -8 ------- Run | Yrd Mat Min Mat Sto Mat Traps Triggered 1 | . . . . 1 . Indirectly . | . . . . . . Trap Hack Attempts . | . . . . . . Triggered . | . . . . . . Disarmed . | . . . . . . Reprogrammed . | . . . . . . Reused . | . . . . . . Traps Extracted . | . . . . . . Installed . | . . . . . . Triggered . | . . . . . . Machines | -11 -10 -10 -9 -9 -8 ---------- Run | Yrd Mat Min Mat Sto Mat Machines Disabled 1 | . . . . . 1 Max in Single Turn 1 | . . . . . 1 Machines Repaired . | . . . . . . Machines Dismantled . | . . . . . . Machines Sabotaged . | . . . . . . Overloaded Fab Kills . | . . . . . . Hacking | -11 -10 -10 -9 -9 -8 --------- Run | Yrd Mat Min Mat Sto Mat Machines Accessed 3 | . 1 . . 2 . Terminals 3 | . 1 . . 2 . Fabricators . | . . . . . . Repair Stations . | . . . . . . Recycling Units . | . . . . . . Scanalyzers . | . . . . . . Garrison Access . | . . . . . . Total Hacks 8 | . 1 . . 7 . Successful 1 | . . . . 1 . Failed 7 | . 1 . . 6 . Catastrophic 1 | . 1 . . . . Database Lockouts . | . . . . . . Manual . | . . . . . . Terminals 8 | . 1 . . 7 . Fabricators . | . . . . . . Repair Stations . | . . . . . . Recycling Units . | . . . . . . Scanalyzers . | . . . . . . Garrison Access . | . . . . . . Terminal Hacks 1 | . . . . 1 . Prototype ID Bank 1 | . . . . 1 . Fabricator Hacks . | . . . . . . Repair Station Hacks . | . . . . . . Recycling Unit Hacks . | . . . . . . Scanalyzer . | . . . . . . Garrison Access Hacks . | . . . . . . Unauthorized Hacks . | . . . . . . Terminals . | . . . . . . Fabricators . | . . . . . . Repair Stations . | . . . . . . Recycling Units . | . . . . . . Scanalyzers . | . . . . . . Garrison Access . | . . . . . . Data Cores Recovered . | . . . . . . Used . | . . . . . . Hacking Detections 3 | . 1 . . 2 . Full Trace Events 1 | . . . . 1 . Feedback Events . | . . . . . . Feedback Blocked . | . . . . . . Robot Schematics Acquired . | . . . . . . Robots Built . | . . . . . . Authchips . | . . . . . . Time . | . . . . . . Total Robot Build Rating . | . . . . . . Part Schematics Acquired . | . . . . . . Parts Built . | . . . . . . Authchips . | . . . . . . Time . | . . . . . . Total Part Build Rating . | . . . . . . Parts Repaired . | . . . . . . Time . | . . . . . . Parts Recycled . | . . . . . . Recycled Matter . | . . . . . . Retrieved Matter . | . . . . . . Retrieved Components . | . . . . . . Parts Scanalyzed . | . . . . . . Part Schematics Acquired . | . . . . . . Parts Damaged . | . . . . . . Bothacking | -11 -10 -10 -9 -9 -8 ------------ Run | Yrd Mat Min Mat Sto Mat Used RIF Installer . | . . . . . . Robots Hacked . | . . . . . . Non-combat . | . . . . . . Combat . | . . . . . . Robot Hacks Applied . | . . . . . . Relay Couplers Released . | . . . . . . Fabnet Peak Effective % . | . . . . . . Robots Rewired . | . . . . . . Allies Hacked . | . . . . . . Hacks Repelled . | . . . . . . Allies | -11 -10 -10 -9 -9 -8 -------- Run | Yrd Mat Min Mat Sto Mat Total Allies 2 | . . 1 . 1 . Largest Group 1 | . . 1 1 1 1 Highest-Rated Group 100 | . . 31 31 100 95 Highest-Rated Ally 100 | . . 31 31 100 95 Total Orders . | . . . . . . Ally Attacks 16 | . . 5 . 11 . Total Damage 308 | . . 85 . 223 . Kills 7 | . . 3 . 4 . Allies Corrupted . | . . . . . . Allies Melted . | . . . . . . Intel | -11 -10 -10 -9 -9 -8 ------- Run | Yrd Mat Min Mat Sto Mat Robot Analysis Total . | . . . . . . Derelict Logs Recovered . | . . . . . . Drone Launches . | . . . . . . Drone Recoveries . | . . . . . . Exploration | -11 -10 -10 -9 -9 -8 ------------- Run | Yrd Mat Min Mat Sto Mat Turns Passed 1105 | 67 59 229 155 325 270 Spaces Moved 668 | 48 48 183 123 206 60 Core 18 | 18 . . . . . Treads . | . . . . . . Legs 650 | 30 48 183 123 206 60 Wheels . | . . . . . . Hover . | . . . . . . Flight . | . . . . . . Fastest Speed 50 | 50 120 120 120 120 120 Average Speed 125 | 93 120 120 120 142 123 Slowest Speed 190 | 120 120 120 120 190 190 Overloaded Moves . | . . . . . . Propulsion Burnouts . | . . . . . . Robots Hopped . | . . . . . . Cave-ins Triggered . | . . . . . . Exploration Rate (%) 22 | 3 17 48 23 36 9 Regions Visited 5 Branch Regions 2 Pre-discovered Areas . | . . . . . . Known Exits Taken . | . . . . . . Unknown Exits Taken 5 | 1 1 1 1 1 . Scrap Searched . | . . . . . . Spaces Dug . | . . . . . . Terrain Destroyed . | . . . . . . Melee . | . . . . . . Projectile . | . . . . . . AOE . | . . . . . . Terrain Rammed . | . . . . . . Walls Destroyed . | . . . . . . Machines Disabled . | . . . . . . Actions | -11 -10 -10 -9 -9 -8 --------- Run | Yrd Mat Min Mat Sto Mat Total 858 | 70 49 188 126 224 201 Wait 106 | . . . . . 106 Move 663 | 47 47 182 122 205 60 Hop . | . . . . . . Pick Up 20 | 9 1 1 . 7 2 Fast Attach . | . . . . . . Attach 18 | 8 . . 2 2 6 Detach . | . . . . . . Swap 6 | . 1 1 . 3 1 Drop 5 | 2 . . . 3 . Fire 34 | . . 3 2 4 25 Melee . | . . . . . . Ram . | . . . . . . Kick 6 | 4 . 1 . . 1 Crush . | . . . . . . Escape Stasis . | . . . . . . Rewire . | . . . . . . Trap . | . . . . . . Miscellaneous . | . . . . . . Route ------- -11/Scrapyard -10/Materials -10/Mines -9/Materials -9/Storage -8/Materials History --------- Turn | Location | Event 28 | -11/Scrapyard | Discovered new exit (range 16) 68 | -11/Scrapyard | Entered Materials 103 | -10/Materials | Discovered new exit (range 16) 127 | -10/Materials | Entered Mines 130 | -10/Mines | Received a Mining Laser from a helpful Derelict 304 | -10/Mines | Build established: Mutant 342 | -10/Mines | Discovered new exit (range 11) 356 | -10/Mines | Entered Materials 356 | -9/Materials | Accompanied by 1 ally 356 | -9/Materials | Evolved 2 slots: Weapon x2 492 | -9/Materials | Discovered new exit (range 6) 511 | -9/Materials | Entered Storage 687 | -9/Storage | Met 01-MTF 791 | -9/Storage | Discovered new exit (range 15) 836 | -9/Storage | Entered Materials 836 | -8/Materials | Accompanied by 1 ally (01-MTF) 836 | -8/Materials | Evolved 2 slots: Propulsion x2 841 | -8/Materials | 01-MTF left 858 | -8/Materials | Build established: Tank 995 | -8/Materials | System corruption reached 10% 999 | -8/Materials | Destroyed 9 combat bots 1022 | -8/Materials | System corruption reached 30% 1068 | -8/Materials | Core integrity fell below 50% 1087 | -8/Materials | Lost 13 parts (3p3n3u4w) 1088 | -8/Materials | Core integrity fell below 20% 1106 | -8/Materials | Destroyed by B-36 Bruiser with Hammer Last Messages --------------- System corrupted by crushing effect (+2). Critical hit (Smash). Lgt. Assault Rifle destroyed. System corrupted by crushing effect (+2). T=HRD,PPJKHT2QB|GANXOOBKE9 Lgt. Ion Engine destroyed. System corrupted by crushing effect (+2). Imp. Assault Rifle destroyed. Beam Cannon destroyed. System corrupted by crushing effect (+2). System corrupted by crushing effect (+3). System corrupted: Component data lost. Lgt. Ion Engine destroyed. System corrupted by crushing effect (+1). System corrupted: Component data lost. Sml. Storage Unit destroyed. System corrupted by crushing effect (+4). System corrupted: Matter fused (-7). System corrupted: Heat flow error (+150). K-01 Serf collects debris. Map ----- +----------------------------------------------------+ | ??????????????????????????? | | ??????????????????????????? | | ??????????????????????????? | | ??????????????????????????? | | ??????????????????????????? | | ??????????????????????????? | | ??????????????????????????? | | ??????????????????????????? | | ??????????????????????????? | | ??????????????????????????? | | ??????????????????????????? | | ??????????????????????????? | | ??????????????????????????? | | ??????????????????????????? | | ??????????????????????????? | | ??????????????????????????? | | ??????????????????????????? | | ??????????????????????????? | | ?????????????????*????????? | | ????????????????? ????????? | | ????????????????? ????????? | | ????????????????#+????????? | | ??????????#?????# ?######## | | ??????????# ??# ?# # | | ??????????# ??# ?# b"# | | ??????????# ### ## ""@# | | ??????????# #=* """# | | ??????????# =[k%= # | | ??????????# =[#* """# | | ??????????# ####%# """# | | ??????????# ^#??# # """# | | ??????????# #??# # # | | ??????????+ ####/######## | | ??????????# # [%=! #??? | | ??????????# # *""" #??? | | ??????????# # """ #??? | | ??????????# %# """ #??? | | ??????????# [+ #??? | | ??????????# # """ #??? | | ??????????# [ # """ #??? | | ??????????# # """ #??? | | ??????????#[ *# #??? | | ??????????# = ##########??? | | ??????????# #???????????? | | ??????????# #???????????? | | ??????????# #???????????? | | ??????????# #???????????? | | ??????????# ########????? | | ??????????# # #????? | | ??????????# # #????? | +----------------------------------------------------+ Best States ------------- Heat Dissipation 31 Energy Generation 10 Energy Capacity 250 Matter Stores 300 Matter Capacity 300 Sight Range 16 Terrain Scan Density 10 Armor Coverage 225 Utility Shielding 33 Evasion (%) 55 Item Schematics ----------------- None Robot Schematics ------------------ None Fabricated ------------ Nothing Alien Tech Used ----------------- None Achievements -------------- System Compromised Challenges ------------ None Game ------ Seed WarpLinkedLattice Manual? 0 Play Time 00:16:36 Cumulative 4.0 hours Start 2024.03.06 @ 22:44:12 End 2024.03.06 @ 22:57:41 Sessions 1 Manual Loads 0 Difficulty Rogue Special Mode None Game No. 10 Rogue 10 Adventurer 0 Explorer 0 Win Type - Total 0 Types 0/0/0/0/0/0/0/0/0 Lore% 1 Gallery% 8 Achievement% 7 Wizard Run 0 Options --------- Layout 1 ASCII 0 Keyboard 0 Movement Arrows Keybinds 0 Fullscreen 1 Font 16/Terminus Map View 25x20 Zoom Use 100% Tactical HUD 0 Map Filters NONE Filters NONE Steam 1 RUN: bbae674b-7937-423f-bcb7-8e0a20f5fdd6